Cogmind - Beta 16.1 @@@ ROGUE MODE // 2026.03.10 @ 02:01:07 Player: Megaknight51 Result: Destroyed by S-27 Virus with Autogun Performance ------------- Evolutions (5) 2500 Regions Visited (12) 2400 Robots Destroyed (159) 795 Value Destroyed (4328) 4328 Prototype IDs (12) 240 Alien Tech Used (0) 0 Bonus (4063) 4063 TOTAL SCORE: 14326 Bonus ------- High Alert Combat Kills 173 Follower Combat Kills 1839 Network Hubs Disabled 200 Registered with UFD 300 Met Zhirov 300 Built Enhanced Grunts 300 A7 Reached Mainframe 300 Met R17 at Cetus 500 Read Decrypted Archives 300 Friendly Fire -149 Cogmind --------- Core Integrity 0/1000 Matter 181/300 Energy 99/100 System Corruption 7% Temperature Cool (0) Movement Core (50) Location -5/Factory Parts ------- > --- POWER (2) -------- (None) > --- PROPULSION (4) --- (None) > --- UTILITY (6) ------ (None) > --- WEAPON (5) ------- (None) > --- INVENTORY (5) ---- Light Angular Momentum Engine High-capacity Matter Pod (5) Compact Matter Pod (150) Improved Plasma Cutter Phasing Sabre Peak State ------------ > --- POWER ------------ Angular Momentum Engine Quantum Reactor > --- PROPULSION ------- Wheel Compact Wheel Compact Wheel > --- UTILITY ---------- High-capacity Storage Unit Targeting Computer Centrium Medium Armor Plating Centrium Medium Armor Plating > --- WEAPON ----------- Improved Assault Rifle Gauss Rifle Heavy Machine Gun Advanced KE Penetrator Phasing Sabre > --- INVENTORY -------- Heavy Ion Engine Cooled Ion Engine Light Angular Momentum Engine Wheel Compact Wheel Compact Wheel High-capacity Matter Pod Compact Matter Pod Spectral Analyzer Experimental Sensor Array Improved Targeting Computer Core Shielding Heavy Laser Improved Assault Rifle Improved Assault Rifle Flak Gun Flak Gun Mini Grenade Launcher Mini Grenade Launcher Plasma Cutter [Rating: 69] Favorites ----------- Power Angular Momentum Engine Engine Angular Momentum Engine Power Core Light Nuclear Core Reactor Quantum Reactor Propulsion Wheel Wheel Wheel Hover Unit Antigrav System Flight Unit Xenon Bombardment Thruster Utility High-capacity Storage Unit Device Experimental Sensor Array Storage High-capacity Storage Unit Processor Targeting Computer Protection Hardened Light Armor Plating Weapon Improved Assault Rifle Energy Gun Medium Laser Ballistic Gun Improved Assault Rifle Ballistic Cannon Light Cannon Launcher Grenade Launcher Special Weapon Mining Laser Slashing Weapon Phasing Sabre Build | -11 -10 -10 -9 -9 -9 -9 -6 -6 -6 -6 -6 -5 ------- Run | Yrd Mat Min Mat Sto Rec Scr Fac Ext Cet Arc Hub Fac Slots Evolved 10 | . . . 2 . . . 6 . . . . 2 Power 1 | . . . . . . . 1 . . . . . Propulsion 2 | . . . . . . . 2 . . . . . Utility 4 | . . . 1 . . . 1 . . . . 2 Weapon 3 | . . . 1 . . . 2 . . . . . Parts Attached 105 | 7 6 7 17 17 1 3 . 13 8 2 18 6 Power 18 | 1 1 2 1 2 1 1 . 2 2 . 4 1 Engine 15 | 1 1 2 . 2 1 1 . 1 1 . 4 1 Core 2 | . . . 1 . . . . 1 . . . . Reactor 1 | . . . . . . . . . 1 . . . Propulsion 28 | 2 . 1 7 5 . . . 5 . . 6 2 Treads . | . . . . . . . . . . . . . Leg . | . . . . . . . . . . . . . Wheel 26 | 2 . 1 7 5 . . . 5 . . 6 . Hover 1 | . . . . . . . . . . . . 1 Flight 1 | . . . . . . . . . . . . 1 Utility 21 | 2 3 2 2 3 . 2 . 1 2 . 2 2 Device 3 | 1 . . . . . 1 . . . . 1 . Storage 3 | 1 1 . . 1 . . . . . . . . Processor 5 | . . . 2 . . . . . . . 1 2 Hackware . | . . . . . . . . . . . . . Protection 10 | . 2 2 . 2 . 1 . 1 2 . . . Artifact . | . . . . . . . . . . . . . Weapon 38 | 2 2 2 7 7 . . . 5 4 2 6 1 Energy Gun 3 | 1 1 . . . . . . . . . . 1 Energy Cannon . | . . . . . . . . . . . . . Ballistic Gun 27 | 1 . 1 5 6 . . . 4 3 1 6 . Ballistic Cannon 1 | . . 1 . . . . . . . . . . Launcher 4 | . . . 2 . . . . 1 1 . . . Special Weapon 2 | . 1 . . 1 . . . . . . . . Impact Weapon . | . . . . . . . . . . . . . Slashing Weapon 1 | . . . . . . . . . . 1 . . Piercing Weapon . | . . . . . . . . . . . . . Special Melee Weapon . | . . . . . . . . . . . . . Unidentified Prototypes 7 | . . . 1 3 . 1 . . 2 . . . Corrupted Parts 4 | . . . . . . . . . 2 . 1 1 System Corruption 20 | . . . . . . . . . 14 . 3 3 Parts Lost 54 | . 3 2 3 4 . . . 6 4 . 26 6 Power 7 | . 1 . 1 . . . . 1 1 . 3 . Propulsion 17 | . . . 2 2 . . . 1 1 . 9 2 Utility 10 | . 1 1 . 1 . . . 2 . . 3 2 Weapon 20 | . 1 1 . 1 . . . 2 2 . 11 2 Highest Loss Streak 12 | . 3 1 1 1 . . . 6 3 . 12 6 To Critical Strikes . | . . . . . . . . . . . . . Average Backups 17 | 2 8 16 19 19 20 19 20 19 19 20 18 14 Power 2 | . 1 1 . 1 2 2 2 2 2 3 3 4 Propulsion 2 | 1 2 3 3 1 2 2 2 2 3 3 1 1 Utility 6 | . 2 5 7 8 7 6 7 6 5 6 5 2 Weapon 6 | . 2 4 7 7 8 8 8 7 7 7 6 3 Tool/Special . | . . . . . . . . . . . . . Unused Backups 27 | . 1 . 10 3 3 1 . 3 . . . 6 Power 3 | . . . . 1 . . . . . . . 2 Propulsion 7 | . . . 2 1 2 . . 1 . . . 1 Utility 9 | . 1 . 5 1 . 1 . . . . . 1 Weapon 7 | . . . 3 . 1 . . 2 . . . 1 Tool/Special 1 | . . . . . . . . . . . . 1 Average Slot Usage (%) 88 | . 99 99 98 98 100 100 60 75 93 93 88 40 Engine 8 | . 13 14 3 11 11 11 6 7 6 6 9 . Core 1 | . . . 7 . . . . 2 . . . . Wheel 19 | . 28 28 21 20 22 22 13 16 24 20 20 4 Device 1 | . 6 . . . . . . . . . 3 3 Storage 9 | . 14 14 11 11 11 11 6 6 6 6 6 4 Processor 9 | . . . 14 12 11 11 6 6 6 6 1 14 Protection 8 | . 7 13 7 9 11 10 6 5 11 13 12 . Energy Gun 1 | . 13 2 . . . . . . . . . . Ballistic Gun 24 | . 8 17 30 31 33 33 20 25 26 27 30 4 Peak Build Rating 69 | 7 8 10 20 26 28 34 28 44 65 69 66 41 Average Rating 27 | 6 7 8 17 22 27 28 28 35 55 66 56 31 On Entrance 25 | . 7 7 10 15 26 28 28 28 38 65 66 10 Avg Prop Armor Cover (%) . | . . . . . . . . . . . . . Naked Turns 74 | . . . . . . . . . . . . 74 Heaviest Build 109 | 12 47 48 56 63 64 70 70 99 106 109 108 49 Greatest Support 64 | 32 32 32 26 20 20 20 20 52 52 42 64 16 Greatest Overweight (x) 16 | . 1 1 5 6 3 3 3 9 2 2 3 16 Average Overweight (x) 2 | . . 1 1 3 3 3 3 2 1 2 1 1 Largest Inventory Capacity 20 | 8 20 20 20 20 20 20 20 20 20 20 20 20 Average Capacity 19 | 7 17 20 20 20 20 20 20 20 20 20 20 18 Most Carried 20 | 5 11 20 20 20 20 20 20 20 20 20 20 18 Average Carried 17 | 3 8 16 19 19 20 19 20 19 19 20 18 14 Final Capacity 20 | 8 20 20 20 20 20 20 20 20 20 20 20 5 Final Carried 20 | 5 9 20 18 20 20 20 20 20 20 20 18 5 Class Distribution -------------------- 32% | Commander-Gunner 18% | Mutant 16% | Gunner 11% | Scavenger-Gunner 8% | Assassin 7% | Scavenger-Tank 4% | Commander-Tank Dominant Class ---------------- Mutant | -10/Materials Mutant | -10/Mines Scavenger-Gunner | -9/Materials Gunner | -9/Storage Commander-Gunner | -9/Recycling Commander-Gunner | -9/Scraptown Commander-Gunner | -6/Factory Commander-Gunner | -6/Extension Commander-Tank | -6/Cetus Commander-Tank | -6/Archives Scavenger-Tank | -6/Hub_04(d) Assassin | -5/Factory Resources | -11 -10 -10 -9 -9 -9 -9 -6 -6 -6 -6 -6 -5 ----------- Run | Yrd Mat Min Mat Sto Rec Scr Fac Ext Cet Arc Hub Fac Matter Collected 4541 | 303 86 186 754 1226 252 40 20 396 382 20 828 48 Remotely . | . . . . . . . . . . . . . Salvage Created 6103 | 264 147 203 1608 1314 645 . 71 356 181 65 1160 89 Parts 346 | 20 7 19 110 82 25 . 2 16 8 5 49 3 Haulers Intercepted 11 | . . . 6 5 . . . . . . . . Recyclers Shooed 12 | . 3 . . 2 . . . 2 . . 5 . Parts Field Recycled . | . . . . . . . . . . . . . Retrieved Matter . | . . . . . . . . . . . . . Parts Self-Destructed . | . . . . . . . . . . . . . Prevented . | . . . . . . . . . . . . . Parts Restored . | . . . . . . . . . . . . . Kills | -11 -10 -10 -9 -9 -9 -9 -6 -6 -6 -6 -6 -5 ------- Run | Yrd Mat Min Mat Sto Rec Scr Fac Ext Cet Arc Hub Fac Combat Hostiles Destroyed 99 | . 5 8 32 19 8 . 1 4 4 1 15 2 Guns 89 | . 5 7 24 19 8 . 1 3 4 1 15 2 Cannons 1 | . . 1 . . . . . . . . . . AOE 9 | . . . 8 . . . . 1 . . . . Classes Destroyed 15 | 2 2 2 4 1 1 . . 1 . . 1 1 Worker 14 | . . 1 5 3 . . . 1 . . 4 . Builder 8 | . . . 3 2 . . . . . . 3 . Tunneler 9 | 8 . . 1 . . . . . . . . . Hauler 11 | . . . 6 5 . . . . . . . . Recycler 12 | 1 . . 2 2 3 . . 1 . . 3 . Mechanic 3 | . . . 1 2 . . . . . . . . Watcher 3 | . . . 1 1 . . . . 1 . . . Swarmer 24 | . 3 6 8 2 . . . . . . 5 . Grunt 42 | . 2 . 20 10 2 . . 1 1 1 5 . Brawler 2 | . . . . 1 1 . . . . . . . Duelist 1 | . . . . . . . . . . . 1 . Sentry 20 | . . 2 4 6 3 . 1 2 . . 2 . Hunter 4 | . . . . . 2 . . . . . 2 . Programmer 2 | . . . . . . . . . . . . 2 Behemoth 1 | . . . . . . . . 1 . . . . Cetus Guard 3 | . . . . . . . . . 3 . . . Best Kill Streak 12 | 4 3 4 12 3 4 . 1 2 3 1 5 1 Combat Bots Only 8 | . 3 3 8 3 4 . 1 1 2 1 4 1 Max Kills in Single Turn 4 | 1 1 1 4 2 2 . 1 2 2 1 2 1 Gunslinging 1 | . . . . . 1 . . . . . 1 . Exploded 2 | . . . 2 . . . . 1 . . . . Melee . | . . . . . . . . . . . . . Uniques/NPCs Destroyed . | . . . . . . . . . . . . . Combat | -11 -10 -10 -9 -9 -9 -9 -6 -6 -6 -6 -6 -5 -------- Run | Yrd Mat Min Mat Sto Rec Scr Fac Ext Cet Arc Hub Fac Hostile Shots Fired 700 | . 34 44 78 97 18 . 6 97 38 . 184 104 Missed 167 | . 6 7 20 24 2 . 5 29 11 . 31 32 Hits 533 | . 28 37 58 73 16 . 1 68 27 . 153 72 Melee 13 | . . . . 5 . . . . . . 8 . Projectile 520 | . 28 37 58 68 16 . 1 68 27 . 145 72 Critical Strikes 21 | . . 1 . 3 . . . 3 2 . 7 5 Actively Blocked 2 | . . . . . . . . . . . . 2 Damage Taken 8646 | . 316 454 677 1162 200 . 6 912 561 . 2995 1363 Core 1973 | . 65 148 116 193 36 . . 51 41 . 319 1004 Absorbed by Shields 537 | . . . . . 7 . . 232 263 . 35 . Redirected to Shielding 61 | . . 21 11 . . . . . 9 . . 20 Regen/Repaired (Parts) 188 | . . . . . . 188 . . . . . . Core Remaining (%) 44 | 100 . 14 . . . 13 . . . . 51 . Volleys Fired 372 | 33 34 22 76 74 21 . 2 22 12 2 53 21 Largest 5 | 2 2 2 3 3 3 . 3 5 5 5 5 2 Hottest 151 | 70 100 50 100 69 61 . 61 124 151 139 139 69 Shots Fired 1057 | 66 61 44 221 219 62 . 6 71 54 9 217 27 Gun 1013 | 66 55 31 204 219 62 . 6 68 49 9 217 27 Cannon 13 | . . 13 . . . . . . . . . . Launcher 24 | . . . 16 . . . . 3 5 . . . Special 7 | . 6 . 1 . . . . . . . . . Kinetic 958 | 33 28 41 204 219 62 . 6 68 49 9 217 22 Thermal 75 | 33 33 3 1 . . . . . . . . 5 Explosive 24 | . . . 16 . . . . 3 5 . . . Electromagnetic . | . . . . . . . . . . . . . Robot Hit Streak 28 | 8 5 12 28 20 16 . 7 11 8 8 10 12 Robot Miss Streak 7 | 4 4 3 3 4 2 . . 6 7 2 7 3 Penetration Max 1 | . . . . . . . . . 1 . 1 . Secondary Targets 11 | . . . 2 2 1 . . 1 . . 5 . Max Gunslinging Chain 1 | . . . 1 1 1 . . 1 . . 1 . Shots Hit Robots 692 | 42 31 31 138 149 41 . 6 56 36 7 134 21 Core Hits 371 | 16 13 14 77 52 15 . 3 40 45 3 86 7 Critical Kills 3 | . . . . . . . . . 1 1 1 . Critical Parts Destroyed 4 | . . . 1 1 . . . . 1 . 1 . Critical Strikes 10 | 1 2 . 1 1 . . . . 2 1 2 . Burn 3 | 1 2 . . . . . . . . . . . Destroy 7 | . . . 1 1 . . . . 2 1 2 . Melee Attacks 6 | . . . . . . . . . . 1 . 5 Impact . | . . . . . . . . . . . . . Slashing 6 | . . . . . . . . . . 1 . 5 Piercing . | . . . . . . . . . . . . . Sneak Attacks . | . . . . . . . . . . . . . Combat Hostiles . | . . . . . . . . . . . . . Follow-up Attacks . | . . . . . . . . . . . . . Damage Inflicted 13084 | 454 309 332 2733 2509 760 . 107 1295 1163 218 2763 441 Guns 11498 | 454 309 200 1943 2496 760 . 107 1140 896 121 2655 417 Cannons 132 | . . 132 . . . . . . . . . . Explosions 1320 | . . . 790 . . . . 155 267 . 108 . Melee 97 | . . . . . . . . . . 97 . . Ramming 37 | . . . . 13 . . . . . . . 24 Kinetic 10990 | 143 103 324 1943 2496 760 . 107 1140 896 121 2655 302 Thermal 640 | 311 206 8 . . . . . . . . . 115 Explosive 1212 | . . . 790 . . . . 155 267 . . . Electromagnetic 108 | . . . . . . . . . . . 108 . Impact . | . . . . . . . . . . . . . Slashing 97 | . . . . . . . . . . 97 . . Piercing . | . . . . . . . . . . . . . Highest Corruption 34 | . . . 3 9 9 . . . 15 15 34 7 Average Corruption 8 | . . . 2 5 9 . . . 14 15 17 6 Corruption Purged . | . . . . . . . . . . . . . Corruption Blocked . | . . . . . . . . . . . . . Effects 128 | . . . 9 33 28 . . . 15 6 33 4 Message Errors 26 | . . . 2 10 5 . . . 2 3 3 1 Matter Fused 27 | . . . 2 7 5 . . . 3 . 10 . Heat Flow Errors 13 | . . . 3 1 3 . . . 2 . 2 2 Energy Discharges 8 | . . . . 1 3 . . . 3 . 1 . Parts Rejected 1 | . . . . 1 . . . . . . . . Parts Fused 2 | . . . . . 1 . . . . . 1 . Data Loss (minor) 23 | . . . 1 7 6 . . . 2 1 5 1 Data Loss (major) 3 | . . . 1 . 2 . . . . . . . Misfires 3 | . . . . 1 1 . . . 1 . . . Alerts 3 | . . . . 1 . . . . . 1 1 . Misdirections 3 | . . . . . . . . . . . 3 . Weapon Failures 16 | . . . . 4 2 . . . 2 1 7 . Overload Shots . | . . . . . . . . . . . . . Overflow Damage 119 | . . . 17 . . . . . . 67 35 . Projectiles . | . . . . . . . . . . . . . Explosions 52 | . . . 17 . . . . . . . 35 . Melee 67 | . . . . . . . . . . 67 . . Knockbacks 1 | . . 1 . . . . . . . . . . Impact . | . . . . . . . . . . . . . Kinetic 1 | . . 1 . . . . . . . . . . Secondary . | . . . . . . . . . . . . . Self-Inflicted Damage 123 | . . . . 6 . . . . . . 106 11 Shots 1 | . . . . . . . . . . . 1 . Rammed 6 | . . . . 2 . . . . . . . 4 Targets Rammed 6 | . . . . 2 . . . . . . . 4 Kicked . | . . . . . . . . . . . . . Crushed . | . . . . . . . . . . . . . Highest Temperature 376 | 150 223 24 266 167 241 . . 241 279 147 376 232 Average Temperature 65 | 54 59 11 37 29 64 . . 91 99 80 137 110 Received Heat Transfer 1782 | . 114 108 246 456 36 . . 377 89 . 311 45 Effects 3 | . . . . . . . . 3 . . . . Energy Bleed 1 | . . . . . . . . 1 . . . . Interference 2 | . . . . . . . . 2 . . . . Siege Activations . | . . . . . . . . . . . . . Martial Activations . | . . . . . . . . . . . . . Shielding Activations . | . . . . . . . . . . . . . Robots Disrupted . | . . . . . . . . . . . . . Combat Hostiles . | . . . . . . . . . . . . . Robots Corrupted . | . . . . . . . . . . . . . Combat Hostiles . | . . . . . . . . . . . . . Parts Fried . | . . . . . . . . . . . . . Impact Corruptions . | . . . . . . . . . . . . . Robots Melted . | . . . . . . . . . . . . . Combat Hostiles . | . . . . . . . . . . . . . Parts Melted 5 | . 4 . . . . . . 1 . . . . Heat Transferred 2035 | 999 814 37 . . . . . . . . . 185 Parts Sabotaged . | . . . . . . . . . . . . . Parts Stolen . | . . . . . . . . . . . . . Parts Stripped . | . . . . . . . . . . . . . Power Chain Reactions . | . . . . . . . . . . . . . Alert | -11 -10 -10 -9 -9 -9 -9 -6 -6 -6 -6 -6 -5 ------- Run | Yrd Mat Min Mat Sto Rec Scr Fac Ext Cet Arc Hub Fac Maximum Alert Level 2 | . . . 2 2 1 . . 1 2 2 1 1 Low Security (%) 62 | 100 100 100 67 . 37 . 100 73 7 68 61 97 Level 1 28 | . . . 26 58 62 . . 26 62 5 38 2 Level 2 9 | . . . 6 41 . . . . 30 26 . . Level 3 . | . . . . . . . . . . . . . Level 4 . | . . . . . . . . . . . . . Level 5 . | . . . . . . . . . . . . . High Security . | . . . . . . . . . . . . . Max Security . | . . . . . . . . . . . . . Peak Influence 676 | 10 32 70 581 676 322 . 38 391 474 570 319 209 Initial 261 | . . . . 243 261 . . 3 187 169 182 98 Average 152 | 2 6 25 133 369 221 . 5 110 341 265 191 25 Influence Increases 5482 | 45 152 200 1061 1099 349 . 38 671 507 493 569 298 Destroy 0b10 Robot/C 2820 | . 100 160 640 580 240 . 20 300 220 220 300 40 Destroy 0b10 Robot/NC 350 | 45 . 5 95 90 20 . . 25 10 10 50 . Destroy Leader 472 | . 20 20 144 174 . . 10 34 10 . 50 10 Allied During Kill 921 | . . . . 166 19 . 8 275 223 230 . . Successful Hack 58 | . 14 . 16 14 7 . . 7 . . . . Select Force Hacks 60 | . . . . . 60 . . . . . . . Disable Machine 240 | . 15 . 45 60 . . . 15 15 15 60 15 Destroy Structure 276 | . 3 . 91 15 3 . . 15 29 18 94 8 Partial Spotted 30 | . . . . . . . . . . . . 30 Lose Combat Pursuer 255 | . . 15 30 . . . . . . . 15 195 Influence Decreases 5273 | 45 152 200 484 1006 913 106 30 344 418 395 890 290 Entered New Map 1700 | . . . . 334 409 106 . 5 148 255 340 103 Time Decay 2549 | 45 122 180 454 452 334 . 30 283 170 40 270 169 Lost Part 464 | . 30 20 30 40 . . . 26 40 . 260 18 Lost Ally 560 | . . . . 180 170 . . 30 60 100 20 . Squads Dispatched 16 | . 1 . 4 4 . . . 1 1 . 3 2 Investigation 2 | . . . 1 . . . . . 1 . . . Extermination 1 | . . . . . . . . . . . . 1 Reinforcement 11 | . 1 . 3 2 . . . 1 . . 3 1 Assault 2 | . . . . 2 . . . . . . . . Garrison . | . . . . . . . . . . . . . Intercept . | . . . . . . . . . . . . . Searches Triggered . | . . . . . . . . . . . . . Construction Impeded 4 | . . . 2 . . . . 1 . . 1 . Haulers Reinforced 1 | . . . . . . . . . . . 1 . Active Scanning Responses . | . . . . . . . . . . . . . Cargo Convoy Interrupts . | . . . . . . . . . . . . . Stealth | -11 -10 -10 -9 -9 -9 -9 -6 -6 -6 -6 -6 -5 --------- Run | Yrd Mat Min Mat Sto Rec Scr Fac Ext Cet Arc Hub Fac Distress Signals 10 | . . . 4 2 1 . . . 2 . 1 . Communications Jammed . | . . . . . . . . . . . . . Distress Signals . | . . . . . . . . . . . . . Times Spotted 211 | . 12 9 48 41 12 . 1 18 12 7 23 28 Peak Tracking Total 11 | . 4 3 6 8 4 . 1 5 5 8 5 11 Tactical Retreats 7 | . . 1 2 . . . . . . . 1 3 Traps | -11 -10 -10 -9 -9 -9 -9 -6 -6 -6 -6 -6 -5 ------- Run | Yrd Mat Min Mat Sto Rec Scr Fac Ext Cet Arc Hub Fac Traps Triggered 16 | . . . 3 7 . . . 2 . . 1 3 Indirectly . | . . . . . . . . . . . . . Trap Hack Attempts . | . . . . . . . . . . . . . Triggered . | . . . . . . . . . . . . . Disarmed . | . . . . . . . . . . . . . Reprogrammed . | . . . . . . . . . . . . . Reused . | . . . . . . . . . . . . . Traps Extracted . | . . . . . . . . . . . . . Installed . | . . . . . . . . . . . . . Triggered . | . . . . . . . . . . . . . Machines | -11 -10 -10 -9 -9 -9 -9 -6 -6 -6 -6 -6 -5 ---------- Run | Yrd Mat Min Mat Sto Rec Scr Fac Ext Cet Arc Hub Fac Machines Disabled 18 | . 1 . 3 4 . . . 3 1 1 4 1 Max in Single Turn 2 | . 1 . 1 1 . . . 1 1 . 2 1 Garrison Access 1 | . . . . . . . . . . . 1 . Network Hub 1 | . . . . . . . . . . . 1 . Machines Repaired . | . . . . . . . . . . . . . Machines Dismantled 4 | . . . . 2 . . . 1 1 . . . Machines Sabotaged . | . . . . . . . . . . . . . Overloaded Fab Kills . | . . . . . . . . . . . . . Hacking | -11 -10 -10 -9 -9 -9 -9 -6 -6 -6 -6 -6 -5 --------- Run | Yrd Mat Min Mat Sto Rec Scr Fac Ext Cet Arc Hub Fac Machines Accessed 28 | . 4 . 5 3 6 1 . 5 2 1 1 . Terminals 22 | . 4 . 4 3 4 . . 5 2 . . . Fabricators . | . . . . . . . . . . . . . Repair Stations . | . . . . . . . . . . . . . Recycling Units 2 | . . . . . 2 . . . . . . . Scanalyzers 1 | . . . 1 . . . . . . . . . Garrison Access 1 | . . . . . . . . . . . 1 . Total Hacks 100 | . 10 . 13 7 11 19 . 6 6 25 3 . Successful 66 | . 5 . 6 3 3 19 . 3 1 25 1 . Failed 33 | . 5 . 6 4 8 . . 3 5 . 2 . Catastrophic 8 | . . . 3 . 3 . . 1 1 . . . Database Lockouts 1 | . . . 1 . . . . . . . . . Manual 33 | . 8 . 9 2 12 . . 1 1 . . . Terminals 46 | . 10 . 9 7 8 . . 6 6 . . . Fabricators . | . . . . . . . . . . . . . Repair Stations . | . . . . . . . . . . . . . Recycling Units 3 | . . . . . 3 . . . . . . . Scanalyzers 4 | . . . 4 . . . . . . . . . Garrison Access 3 | . . . . . . . . . . . 3 . Terminal Hacks 58 | . 4 . 2 3 1 19 . 3 1 25 . . Record 45 | . . . . . . 19 . . 1 25 . . Robot Analysis 2 | . 2 . . . . . . . . . . . Open Door 6 | . . . . 3 . . . 3 . . . . Branch Access Points 1 | . . . 1 . . . . . . . . . Recycling Unit Index 1 | . . . . . 1 . . . . . . . Hauler Manifests 2 | . 1 . 1 . . . . . . . . . Registered Components 1 | . 1 . . . . . . . . . . . Fabricator Hacks . | . . . . . . . . . . . . . Repair Station Hacks . | . . . . . . . . . . . . . Recycling Unit Hacks . | . . . . . . . . . . . . . Scanalyzer 3 | . . . 3 . . . . . . . . . Retrieve Study 3 | . . . 3 . . . . . . . . . Garrison Access Hacks 1 | . . . . . . . . . . . 1 . Seal Access 1 | . . . . . . . . . . . 1 . Unauthorized Hacks 4 | . 1 . 1 . 2 . . . . . . . Terminals 2 | . 1 . 1 . . . . . . . . . Operators 2 | . 1 . 1 . . . . . . . . . Fabricators . | . . . . . . . . . . . . . Repair Stations . | . . . . . . . . . . . . . Recycling Units 2 | . . . . . 2 . . . . . . . Tunnel 2 | . . . . . 2 . . . . . . . Scanalyzers . | . . . . . . . . . . . . . Garrison Access . | . . . . . . . . . . . . . Data Cores Recovered . | . . . . . . . . . . . . . Used . | . . . . . . . . . . . . . Hacking Detections 19 | . 2 . 4 2 4 . . 4 2 . 1 . Full Trace Events 1 | . . . . . . . . . 1 . . . Feedback Events . | . . . . . . . . . . . . . Feedback Blocked . | . . . . . . . . . . . . . Robot Schematics Acquired . | . . . . . . . . . . . . . Robots Built . | . . . . . . . . . . . . . Authchips . | . . . . . . . . . . . . . Time . | . . . . . . . . . . . . . Total Robot Build Rating . | . . . . . . . . . . . . . Part Schematics Acquired . | . . . . . . . . . . . . . Parts Built . | . . . . . . . . . . . . . Authchips . | . . . . . . . . . . . . . Time . | . . . . . . . . . . . . . Total Part Build Rating . | . . . . . . . . . . . . . Part Studies Acquired 3 | . . . 3 . . . . . . . . . Parts Repaired . | . . . . . . . . . . . . . Time . | . . . . . . . . . . . . . Parts Recycled . | . . . . . . . . . . . . . Recycled Matter . | . . . . . . . . . . . . . Retrieved Matter . | . . . . . . . . . . . . . Retrieved Components . | . . . . . . . . . . . . . Parts Scanalyzed . | . . . . . . . . . . . . . Part Schematics Acquired . | . . . . . . . . . . . . . Parts Damaged . | . . . . . . . . . . . . . Bothacking | -11 -10 -10 -9 -9 -9 -9 -6 -6 -6 -6 -6 -5 ------------ Run | Yrd Mat Min Mat Sto Rec Scr Fac Ext Cet Arc Hub Fac Used RIF Installer . | . . . . . . . . . . . . . Robots Hacked . | . . . . . . . . . . . . . Non-combat . | . . . . . . . . . . . . . Combat . | . . . . . . . . . . . . . Robot Hacks Applied . | . . . . . . . . . . . . . Relay Couplers Released . | . . . . . . . . . . . . . Fabnet Peak Effective % . | . . . . . . . . . . . . . Robots Rewired 22 | . . . . . 18 . . 4 . . . . Allies Hacked . | . . . . . . . . . . . . . Hacks Repelled . | . . . . . . . . . . . . . Allies | -11 -10 -10 -9 -9 -9 -9 -6 -6 -6 -6 -6 -5 -------- Run | Yrd Mat Min Mat Sto Rec Scr Fac Ext Cet Arc Hub Fac Total Allies 45 | . . . . 12 18 . . 10 5 . . . Largest Group 17 | . . . . 10 11 11 11 17 17 14 2 . Highest-Rated Group 852 | . . . . 102 117 113 113 517 852 796 27 . Highest-Rated Ally 159 | . . . . 31 31 22 22 159 159 159 22 . Initial UFD Resources 27 | . . . . . . . 23 23 23 23 23 27 Total Orders . | . . . . . . . . . . . . . Ally Attacks 393 | . . . . 127 35 . 6 115 53 57 . . Total Damage 8145 | . . . . 1188 333 . 40 2593 1307 2684 . . Kills 55 | . . . . 13 6 . . 16 9 11 . . Allies Corrupted . | . . . . . . . . . . . . . Allies Melted 1 | . . . . . . . . 1 . . . . Intel | -11 -10 -10 -9 -9 -9 -9 -6 -6 -6 -6 -6 -5 ------- Run | Yrd Mat Min Mat Sto Rec Scr Fac Ext Cet Arc Hub Fac Active Infowar (turns) 1913 | 189 300 . 397 118 . 82 . . . . . 827 Optics 826 | . . . . . . . . . . . . 826 Sensors 842 | . . . . . . 82 . . . . . 760 Seismic 489 | 189 300 . . . . . . . . . . . T.N.C. 515 | . . . 397 118 . . . . . . . . Robot Analysis Total 2 | . 2 . . . . . . . . . . . Derelict Logs Recovered 2 | . . 2 . . . . . . . . . . Drone Launches . | . . . . . . . . . . . . . Drone Recoveries . | . . . . . . . . . . . . . Exploration | -11 -10 -10 -9 -9 -9 -9 -6 -6 -6 -6 -6 -5 ------------- Run | Yrd Mat Min Mat Sto Rec Scr Fac Ext Cet Arc Hub Fac Turns Passed 8643 | 250 663 455 1378 1131 743 1129 183 701 355 99 591 965 Spaces Moved 5413 | 145 457 330 923 656 433 956 144 390 230 65 320 364 Core 145 | 4 . . . . . . . . . . . 141 Treads . | . . . . . . . . . . . . . Legs . | . . . . . . . . . . . . . Wheels 5236 | 141 457 330 923 656 433 956 144 390 230 65 320 191 Hover . | . . . . . . . . . . . . . Flight 32 | . . . . . . . . . . . . 32 Fastest Speed 50 | 50 100 105 100 100 115 115 115 95 100 120 95 50 Average Speed 111 | 98 110 106 109 115 115 115 115 116 104 120 115 100 Slowest Speed 850 | 100 115 115 145 160 115 115 115 205 120 120 130 850 Overloaded Moves . | . . . . . . . . . . . . . Propulsion Burnouts . | . . . . . . . . . . . . . Robots Hopped . | . . . . . . . . . . . . . Potential Cave-ins . | . . . . . . . . . . . . . Cave-ins Triggered . | . . . . . . . . . . . . . Exploration Rate (%) 52 | 5 56 52 66 86 91 66 5 62 80 69 39 8 Regions Visited 12 Branch Regions 8 Pre-discovered Areas 9 | . . 1 . . 2 6 . . . . . . Known Exits Taken 3 | . . . 1 . . . 1 . . . 1 . Unknown Exits Taken 9 | 1 1 1 . 1 1 1 . 1 1 1 . . Scrap Searched 5 | . . 1 . . . 4 . . . . . . Spaces Dug 7 | . 3 . . . . . . . . . . 4 Terrain Destroyed 334 | . 3 . 109 8 2 . . 5 41 . 162 4 Melee 4 | . . . . . . . . . . . . 4 Projectile 28 | . 3 . . 8 2 . . . 3 . 12 . AOE 302 | . . . 109 . . . . 5 38 . 150 . Terrain Rammed . | . . . . . . . . . . . . . Walls Destroyed . | . . . . . . . . . . . . . Machines Disabled . | . . . . . . . . . . . . . Actions | -11 -10 -10 -9 -9 -9 -9 -6 -6 -6 -6 -6 -5 --------- Run | Yrd Mat Min Mat Sto Rec Scr Fac Ext Cet Arc Hub Fac Total 7168 | 189 546 393 1133 839 640 986 157 573 296 77 402 937 Wait 820 | . 40 19 76 26 23 23 12 48 30 4 3 516 Move 5401 | 144 456 329 922 655 432 955 143 389 229 64 319 364 Hop . | . . . . . . . . . . . . . Pick Up 64 | 5 7 12 12 13 3 1 . 6 1 . 2 2 Fast Attach 38 | 7 1 . 3 3 . . . 8 3 . 11 2 Attach 33 | . 2 3 4 3 . . . 2 4 . 6 9 Detach 7 | . . . 1 . . . . . 2 . 1 3 Swap 69 | . 4 5 18 19 1 4 . 5 4 3 5 1 Drop 66 | . 2 3 21 15 4 3 . 5 2 . 1 10 Fire 372 | 33 34 22 76 74 21 . 2 22 12 2 53 21 Melee 6 | . . . . . . . . . . 1 . 5 Ram 7 | . . . . 2 . . . . . . 1 4 Kick . | . . . . . . . . . . . . . Crush . | . . . . . . . . . . . . . Escape Stasis 24 | . . . . 8 . . . 16 . . . . Rewire 225 | . . . . 2 156 . . 64 . 3 . . Trap . | . . . . . . . . . . . . . Miscellaneous 36 | . . . . 19 . . . 8 9 . . . Route ------- -11/Scrapyard -10/Materials (discovered 2 exits: *Mat / [*Min]) -10/Mines -9/Materials (discovered 5 exits: [*Mat x2] / *Min x2 / *Sto) -9/Storage (discovered 2 exits: [*Mat] / *Rec) -9/Recycling (discovered 2 exits: [*Fac] / *Scr) -9/Scraptown -6/Factory (discovered 4 exits: Fac x2 / *Ext x2) -6/Extension (discovered 2 exits: *Fac / *Cet) -6/Cetus (discovered 2 exits: *Fac / *Arc) -6/Archives (discovered 2 exits: *Hub x2) -6/Hub_04(d) (discovered 2 exits: *Fac x2) -5/Factory History --------- Turn | Location | Event 15 | -11/Scrapyard | Discovered new exit (range 16) 251 | -11/Scrapyard | Entered Materials 301 | -10/Materials | Build established: Mutant 522 | -10/Materials | Discovered new exit (range 15) 820 | -10/Materials | Discovered new exit (range 16) 828 | -10/Materials | Lost 3 parts (1p1u1w) 914 | -10/Materials | Entered Mines 921 | -10/Mines | Received a Rocket Launcher from a helpful Derelict 1025 | -10/Mines | Found a damaged Exp. Sensor Array with a note attached 1035 | -10/Mines | Found Prototype Device 1042 | -10/Mines | Learned location of Zion (-6) 1176 | -10/Mines | A weapon hastily lodged in a ceiling crevice suddenly fell to the ground 1196 | -10/Mines | Discovered new exit (range 12) 1261 | -10/Mines | Core integrity fell below 50% 1273 | -10/Mines | Core integrity fell below 20% 1299 | -10/Mines | Learned Materials security intel 1369 | -10/Mines | Entered Materials 1369 | -9/Materials | Evolved 2 slots: Utility x1, Weapon x1 1439 | -9/Materials | Discovered new exit (range 15) 1698 | -9/Materials | Discovered new exit (range 7) 1950 | -9/Materials | Build established: Scavenger-Gunner 2168 | -9/Materials | Identified exit to Mines 2168 | -9/Materials | Identified exit to Storage 2327 | -9/Materials | Destroyed 8 combat bots 2482 | -9/Materials | Central database locked down 2699 | -9/Materials | Discovered new exit (range 8) 2747 | -9/Materials | Entered Storage 3122 | -9/Storage | Assisted by bots powering up and referring to "LRC-V3" 3192 | -9/Storage | Lost 3 allies 3417 | -9/Storage | Discovered new exit (range 11) 3428 | -9/Storage | Build established: Commander-Gunner 3502 | -9/Storage | Met a pair of Derelict thieves 3547 | -9/Storage | Core integrity fell below 50% 3858 | -9/Storage | Used back door to open Recycling access 3858 | -9/Storage | Discovered new exit (range 5) 3861 | -9/Storage | Build established: Gunner 3878 | -9/Storage | Entered Recycling 3878 | -9/Recycling | Accompanied by 3 allies 4091 | -9/Recycling | Discovered new exit (range 5) 4107 | -9/Recycling | Core integrity fell below 20% 4382 | -9/Recycling | Lost 8 allies 4570 | -9/Recycling | Scanned before Scraplab entrance 4586 | -9/Recycling | Entered Scraplab 4596 | -9/Recycling | Discovered new exit (range 3) 4621 | -9/Recycling | Entered Scraptown 4621 | -9/Scraptown | Accompanied by 11 allies 4621 | -9/Scraptown | System corruption cleaned by C-Scrubber 4659 | -9/Scraptown | Build established: Commander-Gunner 4830 | -9/Scraptown | Visited Assassins FH 4838 | -9/Scraptown | Visited Red Mages 4886 | -9/Scraptown | Visited Comm Corps 5022 | -9/Scraptown | Visited CR-KLE's Repair Center 5031 | -9/Scraptown | Identified Exp. Sensor Array 5035 | -9/Scraptown | CR-KLE repaired 4 parts 5065 | -9/Scraptown | Visited UFD Registry 5065 | -9/Scraptown | Registered with UFD as "Wirecell" 5115 | -9/Scraptown | Visited Awakened 5139 | -9/Scraptown | Visited Symbiants 5209 | -9/Scraptown | Visited Science Testing Area 5225 | -9/Scraptown | Visited Sword Containment 5249 | -9/Scraptown | Visited Supply Room 5388 | -9/Scraptown | Visited Infowarlord's Domain 5402 | -9/Scraptown | Found Spectral Analyzer 5424 | -9/Scraptown | Visited DA-N13 Charitable Foundation 5435 | -9/Scraptown | Found DCF Scrap (27 items) 5466 | -9/Scraptown | Visited Scrap Suit Storage 5483 | -9/Scraptown | Visited Cartography Club 5635 | -9/Scraptown | Learned 12 Materials zone layouts 5635 | -9/Scraptown | Learned location of Storage (-9) 5635 | -9/Scraptown | Learned location of Lower Caves (-6) 5635 | -9/Scraptown | Learned location of Upper Caves (-5) 5635 | -9/Scraptown | Learned location of Quarantine (-2) 5635 | -9/Scraptown | Learned 8 Factory zone layouts 5635 | -9/Scraptown | Learned 8 Access zone layouts 5635 | -9/Scraptown | Learned 4 Recycling zone layouts 5635 | -9/Scraptown | Learned 16 Lower Caves zone layouts 5635 | -9/Scraptown | Learned 24 Upper Caves zone layouts 5635 | -9/Scraptown | Learned 16 Proximity Caves zone layouts 5635 | -9/Scraptown | Learned Research emergency access door positions 5635 | -9/Scraptown | Learned location of 3 exits from Factory 5635 | -9/Scraptown | Learned location of 3 exits from Lower Caves 5635 | -9/Scraptown | Learned location of 2 exits from Upper Caves 5694 | -9/Scraptown | Discovered new exit (range 5) 5750 | -9/Scraptown | Entered Factory 5750 | -6/Factory | Accompanied by 11 allies 5750 | -6/Factory | Evolved 6 slots: Power x1, Propulsion x2, Utility x1, Weapon x2 5751 | -6/Factory | Identified exit to Extension 5752 | -6/Factory | Identified exit to Factory 5933 | -6/Factory | Entered Extension 5933 | -6/Extension | Accompanied by 9 allies 5993 | -6/Extension | Rescued a captive Derelict 5996 | -6/Extension | Rescued a captive Derelict 6057 | -6/Extension | Rescued a captive Derelict 6058 | -6/Extension | Rescued a captive Derelict 6266 | -6/Extension | Rescued a captive Derelict 6297 | -6/Extension | Rescued A7 6391 | -6/Extension | Spotted B-75 Beast 6396 | -6/Extension | Spotted B-75 Beast 6414 | -6/Extension | Destroyed B-75 Beast 6430 | -6/Extension | Allies destroyed B-75 Beast 6451 | -6/Extension | Lost 6 parts (1p1n2u2w) 6460 | -6/Extension | Lost 3 allies 6567 | -6/Extension | Discovered new exit (range 16) 6568 | -6/Extension | Discovered exit to Factory (range 15) 6634 | -6/Extension | Entered Cetus 6634 | -6/Cetus | Accompanied by 14 allies (A7) 6639 | -6/Cetus | Acquired a Cetus Manufacturing Module code from A7 6648 | -6/Cetus | Spotted Cetus Guard 6648 | -6/Cetus | Spotted Cetus Guard 6651 | -6/Cetus | Spotted Cetus Guard 6651 | -6/Cetus | Spotted Cetus Guard 6654 | -6/Cetus | Destroyed Cetus Guard 6662 | -6/Cetus | Allies destroyed Cetus Guard 6664 | -6/Cetus | Allies destroyed Cetus Guard 6667 | -6/Cetus | Allies destroyed Cetus Guard 6684 | -6/Cetus | System corruption reached 10% 6720 | -6/Cetus | Started Cetus Manufacturing Module 6745 | -6/Cetus | Manufactured an Enhanced Grunt 6753 | -6/Cetus | Escorted A7 to Cetus Mainframe 6770 | -6/Cetus | Manufactured an Enhanced Grunt 6795 | -6/Cetus | Manufactured an Enhanced Grunt 6820 | -6/Cetus | Manufactured an Enhanced Grunt 6830 | -6/Cetus | Discovered new exit (range 16) 6845 | -6/Cetus | Manufactured an Enhanced Grunt 6865 | -6/Cetus | Spotted Cetus Guard 6866 | -6/Cetus | Spotted Cetus Guard 6868 | -6/Cetus | Spotted Cetus Guard 6868 | -6/Cetus | Spotted Cetus Guard 6875 | -6/Cetus | Allies destroyed Cetus Guard 6875 | -6/Cetus | Destroyed Cetus Guard 6887 | -6/Cetus | Destroyed Cetus Guard 6887 | -6/Cetus | Allies destroyed Cetus Guard 6891 | -6/Cetus | Discovered exit to Factory (range 16) 6899 | -6/Cetus | Met Revision 17 6911 | -6/Cetus | Lost 3 parts (1p1n1w) 6989 | -6/Cetus | Entered Archives 6989 | -6/Archives | Accompanied by 14 allies (A7) 6994 | -6/Archives | Received a hacking code to weaken MAIN.C 7018 | -6/Archives | Met Zhirov 7024 | -6/Archives | Reinforcements dispatched to Archives 7035 | -6/Archives | Unable to access archive contents 7040 | -6/Archives | Discovered new exit (range 16) 7052 | -6/Archives | Read partially decrypted archive contents 7054 | -6/Archives | Discovered new exit (range 16) 7069 | -6/Archives | Reinforcements dispatched to Archives 7071 | -6/Archives | Zhirov warped through subspace 7088 | -6/Archives | Entered Hub_04(d) 7088 | -6/Hub_04(d) | Accompanied by 2 allies 7117 | -6/Hub_04(d) | Lost 6 allies 7196 | -6/Hub_04(d) | Lost 3 parts (1p1n1w) 7330 | -6/Hub_04(d) | Lost 4 parts (2n2w) 7348 | -6/Hub_04(d) | Discovered exit to Factory (range 15) 7365 | -6/Hub_04(d) | Build established: Scavenger-Tank 7470 | -6/Hub_04(d) | Lost 3 parts (1n2w) 7509 | -6/Hub_04(d) | Lost 3 parts (2n1u) 7656 | -6/Hub_04(d) | Network Hub disabled 7661 | -6/Hub_04(d) | Spotted Lightning 7661 | -6/Hub_04(d) | Discovered exit to Factory (range 15) 7664 | -6/Hub_04(d) | Spotted Lightning 7666 | -6/Hub_04(d) | Spotted Lightning 7673 | -6/Hub_04(d) | System corruption reached 30% 7679 | -6/Hub_04(d) | Entered Factory 7679 | -5/Factory | Evolved 2 slots: Utility x2 7710 | -5/Factory | Lost 12 parts (2p3n2u5w) 8031 | -5/Factory | Build established: Assassin 8549 | -5/Factory | Lost 6 parts (2n2u2w) 8570 | -5/Factory | Released all parts (4) 8614 | -5/Factory | Core integrity fell below 50% 8621 | -5/Factory | Allied Derelicts emerged from ambush trap array 8640 | -5/Factory | Core integrity fell below 20% 8644 | -5/Factory | Destroyed by S-27 Virus with Autogun Last Messages --------------- 08587_ Triggered Segregator Trap. 08587_ Arcs of energy rise from the floor. 08589_ System corrupted: Component data lost. 08591_ Slammed into S-27 Virus. 08601_ ALERT: Security rotation in progress. 08604_ System corrupted: Heat flow error (+197). 08604_ Penetrated by Slug. 08608_ Slug penetrates Wall. 08614_ Penetrated by Slug. 08621_ Triggered Ambush Trap. 08621_ 6U-DLG(g) emerges from a hatch in the floor. 08621_ FT-9F5(g) emerges from a hatch in the floor. 08621_ C9-G0K(g) emerges from a hatch in the floor. 08623_ 6U-DLG(g): "We were hacked into the system waiting for the right moment to spring our attack, but seeing as you've already triggered the mechanism and given away our position, let's roll with it." 08623_ S-27 Virus suffers critical hit (Burn). 08643_ Triggered Tiamat Bomb Trap. 08643_ An explosion rips through the floor. 08643_ K-01 Serf destroyed. Map ----- +----------------------------------------------------+ | ?????????????????????????????????????????????????? | | ?????????????????????????????????????????????????? | | ?????????????????????????????????????????????????? | | ?????????????????????????????????????????????????? | | ?????????????????????????????????????????????????? | | ?????????????????????????????????????????????????? | | ?????????????????????????????????????????????????? | | ?????????????????????????????????????????????????? | | ?????????????????????????????????????????????????? | | ?????????????????????????????????????????????????? | | ?????????????????????????????????????????????????? | | ?????????????????????????????????????????????????? | | ?????????????????????????????????????????????????? | | ???????????????????????????????##????????????????? | | ??????????????????????????????? #????????????????? | | ?????????????????????????????? #????????????????? | | ?????????????????????????????? #????????????????? | | ????????????????????????????! #????????????????? | | ????????????????????????#+#? #????????????????? | | ????????????????????????# #? #????????????????? | | ????????????????????????# #? #????????????????? | | ????????????????????????# #? #????????????????? | | ?????????????????######## ## ???#?????????????? | | ?????????????????# # # # #### #?????????????? | | ?????????????????# """" ####??????????? | | ?????????????????# """" @ ????????? | | ?????????????????# """" ##???????????????? | | ?????????????????? """" = #????????????????? | | ?????????????????# % #????????????????? | | ?????????????????######+ #????????????????? | | ???????????????????# ##????????????????? | | ???????????????????# #####?????????????? | | ???????????????????# +?????????????? | | ???????????????????# ######?????????????? | | ???????????????????# #??????????????????? | | ???????????????????# #??????????????????? | | ???????????????????# #??????????????????? | | ???????????????????# #??##??????????????? | | ???????????????????# #?# ??????????????? | | ???????????????????# #?# #??????????????? | | ???????????????????# #?# #??????????????? | | ???????????????????# ### #??????????????? | | ???????????????????# #??????????????? | | ???????????????????# #??????????????? | | ???????????????????# +??????????????? | | ???????????????????# #??????????????? | | ???????????????????# #######????????? | | ???????????????????####+######### """ #????????? | | ????????????????????????????????# "T" #????????? | | ????????????????????????????????# #????????? | +----------------------------------------------------+ Best States ------------- Heat Dissipation 56 Energy Generation 38 Energy Capacity 550 Matter Stores 300 Matter Capacity 500 Sight Range 24 Robot Scan Range 20 Terrain Scan Density 10 Armor Coverage 450 Core Shielding 20 Evasion (%) 50 Targeting Accuracy 6 Item Schematics ----------------- None Robot Schematics ------------------ None Fabricated ------------ Nothing Repaired ---------- Nothing Studied --------- Wheel | -9/Materials | Hacked Hvy. Assault Rifle | -9/Materials | Hacked Rocket Launcher | -9/Materials | Hacked Alien Tech Used ----------------- None Achievements -------------- Main Advantage Project G-00 Revising The Future Challenges ------------ None Game ------ Seed SuperdenseTransportCharger Manual? 0 Play Time 01:04:22 Cumulative 106.3 hours Start 2026.03.10 @ 00:57:24 End 2026.03.10 @ 02:01:07 Sessions 1 Manual Loads 0 Difficulty Rogue Special Mode None Game No. 215 Rogue 215 Adventurer 0 Explorer 0 Win Type - Total 2 Types 1/0/0/1/0/0/0/0/0/0 Lore% 56 Gallery% 41 Achievement% 41 Wizard Run 0 Options --------- Layout 0 ASCII 0 Keyboard 1 Movement Arrows Keybinds 0 Fullscreen 1 Font 18/Smallcaps Map View 76x50 Zoom Use 58% Tactical HUD 1 Map Filters NONE Filters NONE Steam 1 RUN: 14418080-ec81-478b-bc3f-a70fae768aee